Workbook

Sheet HW==>
A1: 1,2,3,6,9,11,12,13,14,17,18,20,21,22,23,26,37,38,55

Sheet (1)
A1: n | B1: 40
A2: Xbar | B2: 25
A3: Sigma | B3: 5
A4: Standard Error of Mean =Sigma/SQRT(n) | B4: =B3/SQRT(B1) -> 0.790569415 | C4: =ShowFormula -> =B3/SQRT(B1) | D4: Standard Deviation of Sampling Distribution of Xbar
A5: Confidence Level | B5: 0.95 | D5: How sure we are that pop mean is in interval
A6: Alpha | B6: =1-B5 -> 0.05 | C6: =ShowFormula -> =1-B5 | D6: How sure we are that pop mean is NOT in interval. Risk we take that Pop Mean is not in interval
A7: Alpha/2 | B7: =B6/2 -> 0.025 | C7: =ShowFormula -> =B6/2
A9: Method 1:
A10: NORM.INV Method
A11: Lower Limit | B11: =_xlfn.NORM.INV(B7,B2,B4) -> 23.45051242 | C11: =ShowFormula -> =NORM.INV(B7,B2,B4) | E11: =NORM.INV(Alpha/2,Xbar,Standard Error)
A12: Upper Limit | B12: =_xlfn.NORM.INV(1-B7,B2,B4) -> 26.54948758 | C12: =ShowFormula -> =NORM.INV(1-B7,B2,B4) | E12: =NORM.INV(1-Alpha/2,Xbar,Standard Error)
A14: Method 2:
A15: NORM.S.INV Method
A16: Z Associated with upper Alpha/2 | B16: =_xlfn.NORM.S.INV(1-B7) -> 1.959963985 | C16: =ShowFormula -> =NORM.S.INV(1-B7) | E16: =NORM.S.INV(1-Alpha/2)
A17: Margin of Error = Alpha/2 * Standard Error | B17: =B4*B16 -> 1.549487581 | C17: =ShowFormula -> =B4*B16
A18: Lower Limit | B18: =B2-B17 -> 23.45051242 | C18: =ShowFormula -> =B2-B17
A19: Upper Limit | B19: =B2+B17 -> 26.54948758 | C19: =ShowFormula -> =B2+B17
A21: Method 3:
A22: CONFIDENCE.NORM Method
A23: Margin of Error | B23: =_xlfn.CONFIDENCE.NORM(B6,B3,B1) -> 1.549487581 | C23: =ShowFormula -> =CONFIDENCE.NORM(B6,B3,B1) | E23: =CONFIDENCE.NORM(Alpha,Sigma,Sample Size)
A24: Lower Limit | B24: =B2-B23 -> 23.45051242 | C24: =ShowFormula -> =B2-B23
A25: Upper Limit | B25: =B2+B23 -> 26.54948758 | C25: =ShowFormula -> =B2+B23
A26: ="Our "&TEXT($B$5,"0%")&" Confidence Interval has limits of "&ROUND($B$24,2)&" and "&ROUND($B$25,2)&". We are about "&TEXT($B$5,"0%")&" sure that the population mean will lie within this interval. We are about "&TEXT(1-$B$5,"0%")&" sure that the population mean will NOT lie within this interval. " -> Our 95% Confidence Interval has limits of 23.45 and 26.55. We are about 95% sure that the population mean will lie within this interval. We are about 5% sure that the population mean will NOT lie within this interval.
A27: ="If we were to construct 100 similar intervals we would expect "&B5*100&" to contain the population mean and "&(1-B5)*100&" to NOT contain the population mean." -> If we were to construct 100 similar intervals we would expect 95 to contain the population mean and 5 to NOT contain the population mean.
A28: ="We estimate the population mean to be about "&B2&" with a margin of error of +/- "&ROUND(B23,1)&"." -> We estimate the population mean to be about 25 with a margin of error of +/- 1.5.
A29: ="A reasonable range of values for the population mean is "&ROUND($B$24,2)&" to "&ROUND($B$25,2)&"." -> A reasonable range of values for the population mean is 23.45 to 26.55.
B64: Mew | C64: Xbar | D64: P(Xbar)
C65: 21.8 | G65: 21.8
C66: 21.9 | G66: 28.1
C67: 22
C68: 22.1
C69: 22.2
C70: 22.3
C71: 22.4
C72: 22.5
C73: 22.6
C74: 22.7
C75: 22.8
C76: 22.9
C77: 23
C78: 23.1
C79: 23.2
C80: 23.3
C81: 23.4
C82: 23.5
C83: 23.6
C84: 23.7
C85: 23.8
C86: 23.9
C87: 24
C88: 24.1
C89: 24.2
C90: 24.3
C91: 24.4
C92: 24.5
C93: 24.6
C94: 24.7
C95: 24.8
C96: 24.9
C97: 25
C98: 25.1
C99: 25.2
C100: 25.3
C101: 25.4
C102: 25.5
C103: 25.6
C104: 25.7
C105: 25.8
C106: 25.9
C107: 26
C108: 26.1
C109: 26.2
C110: 26.3
C111: 26.4
C112: 26.5
C113: 26.6
C114: 26.7
C115: 26.8
C116: 26.9
C117: 27
C118: 27.1
C119: 27.2
C120: 27.3
C121: 27.4
C122: 27.5
C123: 27.6
C124: 27.7
C125: 27.8
C126: 27.9
C127: 28
C128: 28.1

Sheet (2)
A1: n | B1: 50 | D1: Method 1:
A2: Xbar | B2: 32
A3: Sigma | B3: 6
A4: Standard Error of Mean | B4: =B3/SQRT(B1) -> 0.8485281374
A6: Confidence Level | B6: 0.9 | C6: How sure we are that pop mean is in interval
A7: Alpha | B7: =1-B6 -> 0.1 | C7: How sure we are that pop mean is NOT in interval. Risk we take that Pop Mean is not in interval
A8: Lower Limit | B8: =_xlfn.NORM.INV(B7/2,$B$2,$B$4) -> 30.60429542
A9: Upper Limit | B9: =_xlfn.NORM.INV(1-B7/2,$B$2,$B$4) -> 33.39570458
A10: ="A reasonable range of values for the population mean is "&ROUND(B8,2)&" to "&ROUND(B9,2)&"." -> A reasonable range of values for the population mean is 30.6 to 33.4.
A11: ="We are "&TEXT(B6,"0%")&" sure that the population mean between "&ROUND(B8,2)&" and "&ROUND(B9,2)&"." -> We are 90% sure that the population mean between 30.6 and 33.4.
A12: Confidence Level | B12: 0.95 | C12: How sure we are that pop mean is in interval
A13: Alpha | B13: =1-B12 -> 0.05 | C13: How sure we are that pop mean is NOT in interval. Risk we take that Pop Mean is not in interval
A14: Lower Limit | B14: =_xlfn.NORM.INV(B13/2,$B$2,$B$4) -> 30.33691541
A15: Upper Limit | B15: =_xlfn.NORM.INV(1-B13/2,$B$2,$B$4) -> 33.66308459
A16: ="A reasonable range of values for the population mean is "&ROUND(B14,2)&" to "&ROUND(B15,2)&"." -> A reasonable range of values for the population mean is 30.34 to 33.66.
A17: ="We are "&TEXT(B12,"0%")&" sure that the population mean between "&ROUND(B14,2)&" and "&ROUND(B15,2)&"." -> We are 95% sure that the population mean between 30.34 and 33.66.
A18: Confidence Level | B18: 0.99 | C18: How sure we are that pop mean is in interval
A19: Alpha | B19: =1-B18 -> 0.01 | C19: How sure we are that pop mean is NOT in interval. Risk we take that Pop Mean is not in interval
A20: Lower Limit | B20: =_xlfn.NORM.INV(B19/2,$B$2,$B$4) -> 29.81433636
A21: Upper Limit | B21: =_xlfn.NORM.INV(1-B19/2,$B$2,$B$4) -> 34.18566364
A22: ="A reasonable range of values for the population mean is "&ROUND(B20,2)&" to "&ROUND(B21,2)&"." -> A reasonable range of values for the population mean is 29.81 to 34.19.
A23: ="We are "&TEXT(B18,"0%")&" sure that the population mean between "&ROUND(B20,2)&" and "&ROUND(B21,2)&"." -> We are 99% sure that the population mean between 29.81 and 34.19.

Sheet (3)
A1: a | B1: n | C1: 60 | E1: Method 1:
B2: Xbar | C2: 80
B3: Sigma | C3: 15
B4: Confidence Level | C4: 0.95
B5: Level of Significance = Alpha | C5: =1-C4 -> 0.05
B6: Alpha/2 | C6: =C5/2 -> 0.025
B7: Standard Error of Mean | C7: =C3/SQRT(C1) -> 1.936491673
B8: Lower Limit | C8: =_xlfn.NORM.INV(C6,C2,C7) -> 76.20454606
B9: Upper Limit | C9: =_xlfn.NORM.INV(1-C6,C2,C7) -> 83.79545394
B11: ="We are about "&TEXT(C4,"0%")&" sure that the population mean lies between "&ROUND(C8,2)&" and "&ROUND(C9,2)&"." -> We are about 95% sure that the population mean lies between 76.2 and 83.8.
A13: b | B13: n | C13: 120
B14: Xbar | C14: 80
B15: Sigma | C15: 15
B16: Confidence Level | C16: 0.95
B17: Level of Significance = Alpha | C17: =1-C16 -> 0.05
B18: Alpha/2 | C18: =C17/2 -> 0.025
B19: Standard Error of Mean | C19: =C15/SQRT(C13) -> 1.369306394
B20: Lower Limit | C20: =_xlfn.NORM.INV(C18,C14,C19) -> 77.31620878
B21: Upper Limit | C21: =_xlfn.NORM.INV(1-C18,C14,C19) -> 82.68379122
B23: ="We are about "&TEXT(C16,"0%")&" sure that the population mean lies between "&ROUND(C20,2)&" and "&ROUND(C21,2)&"." -> We are about 95% sure that the population mean lies between 77.32 and 82.68.
A25: c | B25: The larger sample size reduce the interval and makes our prediction of the population mean more precise

Sheet (6)
A1: Hours of TV watch between 8 PM and 11 PM | C1: Method 1: NORM.INV | F1: Method 2: NORM.S.INV | I1: Method 3: CONFIDENCE.NORM
A2: 6 | C2: Sigma | D2: 3.5 | F2: Sigma | G2: 3.5 | I2: Sigma | J2: 3.5 | K2: hours
A3: 4 | C3: Confidence Level | D3: 0.95 | F3: Confidence Level | G3: 0.95 | I3: Confidence Level | J3: 0.95
A4: 9 | C4: alpha | D4: =1-D3 -> 0.05 | F4: alpha | G4: =1-G3 -> 0.05 | I4: n | J4: =COUNT($A$2:$A$301) -> 300
A5: 8 | C5: alpha/2 | D5: =D4/2 -> 0.025 | F5: alpha/2 | G5: =G4/2 -> 0.025 | I5: Mean | J5: =AVERAGE($A$2:$A$301) -> 8.5
A6: 19 | C6: n | D6: =COUNT($A$2:$A$301) -> 300 | F6: n | G6: =COUNT($A$2:$A$301) -> 300 | I6: Margin of Error | J6: =_xlfn.CONFIDENCE.NORM(1-J3,J2,J4) -> 0.3960550069
A7: 7 | C7: Mean | D7: =AVERAGE($A$2:$A$301) -> 8.5 | F7: Mean | G7: =AVERAGE($A$2:$A$301) -> 8.5 | I7: Lower Limit | J7: =J5-J6 -> 8.103944993
A8: 6 | C8: Standard Error | D8: =D2/SQRT(D6) -> 0.2020725942 | F8: Standard Error | G8: =G2/SQRT(G6) -> 0.2020725942 | I8: Upper Limit | J8: =J5+J6 -> 8.896055007
A9: 13 | C9: Lower Limit | D9: =_xlfn.NORM.INV(D5,D7,D8) -> 8.103944993 | F9: Upper z value | G9: =_xlfn.NORM.S.INV(1-G5) -> 1.959963985 | I9: ="From our sample we calculated a mean of "&J5&" hours, within a margin of error +/- "&ROUND(J6,2)&" hours." -> From our sample we calculated a mean of 8.5 hours, within a margin of error +/- 0.4 hours.
A10: 10 | C10: Upper Limit | D10: =_xlfn.NORM.INV(1-D5,D7,D8) -> 8.896055007 | F10: Margin of Error | G10: =G9*G8 -> 0.3960550069
A11: 12 | C11: ="We are "&TEXT(D3,"0.%")&" sure that the population mean TV viewing time is between "&FIXED(D9,2)&" hours and "&FIXED(D10,2)&" hours." -> We are 95.% sure that the population mean TV viewing time is between 8.10 hours and 8.90 hours. | F11: Lower Limit | G11: =G7-G10 -> 8.103944993
A12: 5 | F12: Upper Limit | G12: =G7+G10 -> 8.896055007
A13: 6 | F13: ="From our sample we calculated a mean of "&G7&" hours, within a margin of error +/- "&ROUND(G10,2)&" hours." -> From our sample we calculated a mean of 8.5 hours, within a margin of error +/- 0.4 hours. | I13: ="We are "&TEXT(J3,"0.%")&" sure that the population mean TV viewing time is between "&ROUND(J7,2)&" hours and "&ROUND(J8,2)&" hours." -> We are 95.% sure that the population mean TV viewing time is between 8.1 hours and 8.9 hours.
A14: 9
A15: 0 | C15: =TEXT(D4,"0%")&" risk that it is not within our interval" -> 5% risk that it is not within our interval
A16: 6
A17: 7 | C17: If we constructed 100 similar intervals, we would expect the population mean to lie within about 95 of the intervals. | F17: ="We are "&TEXT(G3,"0.%")&" sure that the population mean TV viewing time is between "&ROUND(G11,2)&" hours and "&ROUND(G12,2)&" hours." -> We are 95.% sure that the population mean TV viewing time is between 8.1 hours and 8.9 hours. | I17: =TEXT(1-J3,"0%")&" risk that it is not within our interval" -> 5% risk that it is not within our interval
A18: 4
A19: 13 | I19: If we constructed 100 similar intervals, we would expect the population mean to lie within about 95 of the intervals.
A20: 5
A21: 14 | F21: =TEXT(G4,"0%")&" risk that it is not within our interval" -> 5% risk that it is not within our interval
A22: 8
A23: 9 | F23: If we constructed 100 similar intervals, we would expect the population mean to lie within about 95 of the intervals.
A24: 9
A25: 6
A26: 8
A27: 12
A28: 6
A29: 7
A30: 5
A31: 7
A32: 9
A33: 16
A34: 8
A35: 9
A36: 10
A37: 11
A38: 4
A39: 10
A40: 5
A41: 9
A42: 6
A43: 9
A44: 9
A45: 7
A46: 5
A47: 11
A48: 8
A49: 12
A50: 4
A51: 11
A52: 12
A53: 9
A54: 10
A55: 5
A56: 12
A57: 3
A58: 13
A59: 10
A60: 12
A61: 8
A62: 13
A63: 8
A64: 9
A65: 9
A66: 11
A67: 4
A68: 4
A69: 10
A70: 7
A71: 9
A72: 14
A73: 13
A74: 6
A75: 5
A76: 6
A77: 7
A78: 9
A79: 9
A80: 10
A81: 12
A82: 8
A83: 4
A84: 10
A85: 12
A86: 10
A87: 7
A88: 5
A89: 4
A90: 7
A91: 9
A92: 12
A93: 7
A94: 12
A95: 14
A96: 6
A97: 7
A98: 2
A99: 9
A100: 9
A101: 16
A102: 11
A103: 9
A104: 5
A105: 9
A106: 10
A107: 7
A108: 9
A109: 10
A110: 4
A111: 11
A112: 13
A113: 10
A114: 3
A115: 8
A116: 9
A117: 17
A118: 7
A119: 9
A120: 9
A121: 4
A122: 7
A123: 12
A124: 4
A125: 9
A126: 7
A127: 8
A128: 12
A129: 4
A130: 8
A131: 14
A132: 5
A133: 5
A134: 5
A135: 13
A136: 3
A137: 6
A138: 10
A139: 4
A140: 15
A141: 4
A142: 7
A143: 3
A144: 4
A145: 7
A146: 12
A147: 13
A148: 10
A149: 10
A150: 12
A151: 8
A152: 6
A153: 18
A154: 8
A155: 12
A156: 5
A157: 8
A158: 12
A159: 7
A160: 10
A161: 3
A162: 4
A163: 9
A164: 7
A165: 4
A166: 4
A167: 10
A168: 4
A169: 13
A170: 7
A171: 7
A172: 10
A173: 11
A174: 1
A175: 7
A176: 4
A177: 11
A178: 12
A179: 7
A180: 8
A181: 12
A182: 9
A183: 11
A184: 10
A185: 7
A186: 7
A187: 9
A188: 4
A189: 13
A190: 7
A191: 0
A192: 12
A193: 3
A194: 10
A195: 4
A196: 10
A197: 7
A198: 4
A199: 4
A200: 8
... 101 more rows

Sheet (9)
A1: Return Preparation Time(Hours) | C1: Sigma | D1: 9 | E1: hours | G1: Method 3:
A2: 35.3 | C2: Confidence Level | D2: 0.95
A3: 30.5 | C3: n | D3: =COUNT(A2:A41) -> 40
A4: 37.4 | C4: Mean | D4: =ROUND(AVERAGE(A2:A41),1) -> 33.5
A5: 26.5 | C5: Margin of Error | D5: =ROUND(_xlfn.CONFIDENCE.NORM(1-D2,D1,D3),1) -> 2.8
A6: 13 | C6: Lower Limit | D6: =$D$4-$D$5 -> 30.7
A7: 49.9 | C7: Upper Limit | D7: =$D$4+$D$5 -> 36.3
A8: 28.8 | C8: ="From our sample we calculated a mean of "&D4&" hours, within a margin of error +/- "&D5&" hours." -> From our sample we calculated a mean of 33.5 hours, within a margin of error +/- 2.8 hours.
A9: 44 | C9: ="We are "&TEXT(D2,"0.%")&" sure that the population mean time to complete tax return is between "&D6&" hours and "&D7&" hours." -> We are 95.% sure that the population mean time to complete tax return is between 30.7 hours and 36.3 hours.
A10: 61.6 | C10: 5% risk that it is not within our interval
A11: 0.5 | C11: If we constructed 100 similar intervals, we would expect the population mean to lie within about 95 of the intervals.
A12: 40.5
A13: 34.9
A14: 47.9
A15: 36.6
A16: 24.1
A17: 39.8
A18: 47.8
A19: 18.5
A20: 36.6
A21: 39.2
A22: 14.5
A23: 37.3
A24: 40.5
A25: 49.3
A26: 45.5
A27: 28.3
A28: 19.5
A29: 5.6
A30: 52.6
A31: 41.4
A32: 45.3
A33: 39
A34: 33.7
A35: 29.4
A36: 14.5
A37: 40.1
A38: 33.7
A39: 36.9
A40: 5.6
A41: 33.7

Sheet (11)
A1: Find Probability
B2: df | C2: 16 | F2: Right
F3: Left
A4: a | B4: t | C4: 2.12 | F4: Between
B5: Area: | C5: Right
B6: ="P(t>="&C4&") =" -> P(t>=2.12) = | C6: =_xlfn.T.DIST.RT(C4,$C$2) -> 0.02499546436 | D6: =1-_xlfn.T.DIST(C4,$C$2,1) -> 0.02499546436
A8: b | B8: t | C8: 1.337
B9: Area: | C9: Left
B10: ="P(t<="&C8&") =" -> P(t<=1.337) = | C10: =_xlfn.T.DIST(C8,$C$2,1) -> 0.9000387732
A12: c | B12: t | C12: -1.746
B13: Area: | C13: Left
B14: ="P(t<="&C12&") =" -> P(t<=-1.746) = | C14: =_xlfn.T.DIST(C12,$C$2,1) -> 0.04998962385
A16: d | B16: t | C16: 2.583
B17: Area: | C17: Right
B18: ="P(t>="&C16&") =" -> P(t>=2.583) = | C18: =_xlfn.T.DIST.RT(C16,$C$2) -> 0.01000988535 | D18: =1-_xlfn.T.DIST(C16,$C$2,1) -> 0.01000988535
A20: e | B20: t | C20: 2.12 | D20: +/-
B21: Area: | C21: Between
B22: ="P(-"&C20&" <= t <= "&C20&")" -> P(-2.12 <= t <= 2.12) | C22: =_xlfn.T.DIST(C20,$C$2,1)-_xlfn.T.DIST(-C20,$C$2,1) -> 0.9500090713
A24: f | B24: t | C24: 1.746 | D24: +/-
B25: Area: | C25: Between
B26: ="P(-"&C24&" <= t <= "&C24&")" -> P(-1.746 <= t <= 1.746) | C26: =_xlfn.T.DIST(C24,$C$2,1)-_xlfn.T.DIST(-C24,$C$2,1) -> 0.9000207523

Sheet (12)
A1: Find T values | I1: Upper Tail Area
I2: Lower Tail Area
A3: a | B3: Probability in | C3: Probability | D3: df | E3: t | I3: Between two t values
B4: Upper Tail Area | C4: 0.025 | D4: 12 | E4: =_xlfn.T.INV(1-C4,D4) -> 2.17881283
A6: b | B6: Probability in | C6: Probability | D6: df | E6: t
B7: Lower Tail Area | C7: 0.05 | D7: 50 | E7: =_xlfn.T.INV(C7,D7) -> -1.675905025
A9: c | B9: Probability in | C9: Probability | D9: df | E9: t
B10: Upper Tail Area | C10: 0.01 | D10: 30 | E10: =_xlfn.T.INV(1-C10,D10) -> 2.457261542
A12: d | B12: Probability in | C12: Probability | D12: alpha | E12: alpha/2 | F12: df | G12: +/- t | I12: t lower | J12: t upper
B13: Between two t values | C13: 0.9 | D13: =1-C13 -> 0.1 | E13: =D13/2 -> 0.05 | F13: 25 | G13: =_xlfn.T.INV.2T(D13,F13) -> 1.708140761 | I13: =_xlfn.T.INV(E13,F13) -> -1.708140761 | J13: =_xlfn.T.INV(C13+E13,F13) -> 1.708140761
A15: e | B15: Probability in | C15: Probability | D15: alpha | E15: alpha/2 | F15: df | G15: +/- t | I15: t lower | J15: t upper
B16: Between two t values | C16: 0.95 | D16: =1-C16 -> 0.05 | E16: =D16/2 -> 0.025 | F16: 45 | G16: =_xlfn.T.INV.2T(D16,F16) -> 2.014103389 | I16: =_xlfn.T.INV(E16,F16) -> -2.014103389 | J16: =_xlfn.T.INV(C16+E16,F16) -> 2.014103389

Sheet (13)
A1: Sample | D1: Method 2: | K1: Min | L1: =MIN(A2:A9) -> 5
A2: 10 | D2: Sample size = n | E2: =COUNT(A2:A9) -> 8 | K2: Max | L2: =MAX(A2:A9) -> 15
A3: 8 | C3: a | D3: Point Estimate = Xbar | E3: =AVERAGE(A2:A9) -> 10 | K3: Category | L3: Frequency
A4: 12 | C4: b | D4: Point Estimate = s | E4: =_xlfn.STDEV.S(A2:A9) -> 3.464101615 | K4: 5 | L4: =COUNTIF($A$2:$A$9,K4) -> 1
A5: 15 | D5: Confidence Level | E5: 0.95 | K5: 6 | L5: 1
A6: 13 | D6: alpha | E6: =1-E5 -> 0.05 | K6: 7 | L6: 0
A7: 11 | C7: c | D7: Margin of Error | E7: =_xlfn.CONFIDENCE.T(E6,E4,E2) -> 2.896061425 | K7: 8 | L7: 1
A8: 6 | D8: Lower Limit | E8: =$E$3-$E$7 -> 7.103938575 | K8: 9 | L8: 0
A9: 5 | D9: Upper Limit | E9: =$E$3+$E$7 -> 12.89606142 | K9: 10 | L9: 1
C10: d | D10: ="We are "&TEXT(E5,"0%")&" sure that the pop mean lies between "&ROUND(E8,2)&" and "&ROUND(E9,2)&"." -> We are 95% sure that the pop mean lies between 7.1 and 12.9. | K10: 11 | L10: 1
D11: ="We estimate the population mean to be about "&E3&" with a margin of error of +/-"&ROUND(E7,1) -> We estimate the population mean to be about 10 with a margin of error of +/-2.9 | K11: 12 | L11: 1
D12: Method 1: | K12: 13 | L12: 1
D13: alpha/2 | E13: =E6/2 -> 0.025 | K13: 14 | L13: 0
D14: df | E14: =E2-1 -> 7 | K14: 15 | L14: 1
D15: Standard Error | E15: =E4/SQRT(E2) -> 1.224744871
D16: t lower | E16: =_xlfn.T.INV(E13,E14) -> -2.364624252
D17: t upper | E17: =_xlfn.T.INV(E5+E13,E14) -> 2.364624252 | F17: =_xlfn.T.INV.2T(E6,E14) -> 2.364624252
D18: Lower Limit | E18: =$E$3+E16 -> 7.635375748
D19: Upper Limit | E19: =$E$3+F17 -> 12.36462425
D21: Method 3:
D22: Sample
D24: Mean | E24: 10
D25: Standard Error | E25: 1.224744871
D26: Median | E26: 10.5
D27: Mode
D28: Standard Deviation | E28: 3.464101615
D29: Sample Variance | E29: 12
D30: Kurtosis | E30: -1.042857143
D31: Skewness | E31: -0.1649572198
D32: Range | E32: 10
D33: Minimum | E33: 5
D34: Maximum | E34: 15
D35: Sum | E35: 80
D36: Count | E36: 8
D37: Confidence Level(95.0%) | E37: 2.896061425
D39: Lower Xbar | E39: =$E$24-$E$37 -> 7.103938575
D40: Upper Xbar | E40: =$E$24+$E$37 -> 12.89606142

Sheet (14)
A1: All done with Method 2
B2: n | C2: 54
B3: Xbar | C3: 22.5
B4: s | C4: 4.4
A6: a | B6: Confidence Level | C6: 0.9 | D6: How sure we are that Pop Mean lies in interval
B7: Alpha | C7: =1-C6 -> 0.1 | D7: risk that pop mean is not in interval
B8: Margin of Error | C8: =_xlfn.CONFIDENCE.T(C7,$C$4,$C$2) -> 1.002400801
B9: Lower Limit | C9: =$C$3-C8 -> 21.4975992
B10: Upper Limit | C10: =$C$3+C8 -> 23.5024008
B11: Confidence Interval | C11: ="We are "&TEXT(C6,"0%")&" sure that the pop mean lies between "&ROUND(C9,2)&" and "&ROUND(C10,2)&"." -> We are 90% sure that the pop mean lies between 21.5 and 23.5.
C12: ="There is a "&TEXT(C7,"0%")&" risk that the pop mean does not lie within our interval." -> There is a 10% risk that the pop mean does not lie within our interval.
A14: b | B14: Confidence Level | C14: 0.95 | D14: How sure we are that Pop Mean lies in interval
B15: Alpha | C15: =1-C14 -> 0.05 | D15: risk that pop mean is not in interval
B16: Margin of Error | C16: =_xlfn.CONFIDENCE.T(C15,$C$4,$C$2) -> 1.200968815
B17: Lower Limit | C17: =$C$3-C16 -> 21.29903119
B18: Upper Limit | C18: =$C$3+C16 -> 23.70096881
B19: Confidence Interval | C19: ="We are "&TEXT(C14,"0%")&" sure that the pop mean lies between "&ROUND(C17,2)&" and "&ROUND(C18,2)&"." -> We are 95% sure that the pop mean lies between 21.3 and 23.7.
C20: ="There is a "&TEXT(C15,"0%")&" risk that the pop mean does not lie within our interval." -> There is a 5% risk that the pop mean does not lie within our interval.
A22: c | B22: Confidence Level | C22: 0.99 | D22: How sure we are that Pop Mean lies in interval
B23: Alpha | C23: =1-C22 -> 0.01 | D23: risk that pop mean is not in interval
B24: Margin of Error | C24: =_xlfn.CONFIDENCE.T(C23,$C$4,$C$2) -> 1.599791635
B25: Lower Limit | C25: =$C$3-C24 -> 20.90020837
B26: Upper Limit | C26: =$C$3+C24 -> 24.09979163
B27: Confidence Interval | C27: ="We are "&TEXT(C22,"0%")&" sure that the pop mean lies between "&ROUND(C25,2)&" and "&ROUND(C26,2)&"." -> We are 99% sure that the pop mean lies between 20.9 and 24.1.
C28: ="There is a "&TEXT(C23,"0%")&" risk that the pop mean does not lie within our interval." -> There is a 1% risk that the pop mean does not lie within our interval.
A30: d | B30: The margin of error and width of the confidence interval increase as the alpha decreases.
B31: This makes sense because as we take less risk that the pop mean is not within our interval,
B32: the confidence interval should expand to include more values.

Sheet (17)
A1: Rating for Miami International Airport | C1: Method 1: T.INV | F1: Method 2: CONFIDENCE.T | I1: Method 3: Data Analysis: Descriptive Statistics
A2: 6
A3: 4 | C3: n | D3: =COUNT(A2:A51) -> 50 | F3: n | G3: =COUNT(A2:A51) -> 50 | I3: Rating for Miami International Airport
A4: 6 | C4: Xbar | D4: =AVERAGE(A2:A51) -> 6.34 | F4: Xbar | G4: =AVERAGE(A2:A51) -> 6.34
A5: 8 | C5: s | D5: =_xlfn.STDEV.S(A2:A51) -> 2.16285903 | F5: s | G5: =_xlfn.STDEV.S(A2:A51) -> 2.16285903 | I5: Mean | J5: 6.34
A6: 7 | C6: Cofidence Level | D6: 0.95 | F6: Cofidence Level | G6: 0.95 | I6: Standard Error | J6: 0.3058744574
A7: 7 | C7: Alpha | D7: =1-D6 -> 0.05 | F7: Alpha | G7: =1-G6 -> 0.05 | I7: Median | J7: 6.5
A8: 6 | C8: Alpha/2 | D8: =D7/2 -> 0.025 | F8: Margin of Error | G8: =_xlfn.CONFIDENCE.T(G7,G5,G3) -> 0.6146777352 | I8: Mode | J8: 8
A9: 3 | C9: df | D9: =D3-1 -> 49 | F9: Lower Limit | G9: =$G$4-$G$8 -> 5.725322265 | I9: Standard Deviation | J9: 2.16285903
A10: 3 | C10: Upper t | D10: =_xlfn.T.INV(1-D8,D9) -> 2.009575237 | F10: Upper Limit | G10: =$G$4+$G$8 -> 6.954677735 | I10: Sample Variance | J10: 4.677959184
A11: 8 | C11: Standard Error | D11: =D5/SQRT(D3) -> 0.3058744574 | F11: ="We are "&TEXT(G6,"0%")&" sure the pop mean for "&A1&" lies between "&FIXED(G9,2)&" and "&FIXED(G10,2)&"." -> We are 95% sure the pop mean for Rating for Miami International Airport lies between 5.73 and 6.95. | I11: Kurtosis | J11: -1.180629819
A12: 10 | C12: Margin of Error | D12: =D10*D11 -> 0.6146777352 | I12: Skewness | J12: -0.1444922464
A13: 4 | C13: Lower Limit | D13: =$D$4-$D$12 -> 5.725322265 | I13: Range | J13: 8
A14: 8 | C14: Upper Limit | D14: =$D$4+$D$12 -> 6.954677735 | I14: Minimum | J14: 2
A15: 7 | C15: ="We are "&TEXT(D6,"0%")&" the pop mean for "&J5&" lies between "&FIXED(D13,2)&" and "&FIXED(D14,2)&"." -> We are 95% the pop mean for 6.34 lies between 5.73 and 6.95. | I15: Maximum | J15: 10
A16: 8 | F16: ="We estimate the population mean to be about "&G4&" with a margin of error of +/-"&ROUND(G8,2) -> We estimate the population mean to be about 6.34 with a margin of error of +/-0.61 | I16: Sum | J16: 317
A17: 7 | I17: Count | J17: 50
A18: 5 | I18: Confidence Level(95.0%) | J18: 0.6146777352
A19: 9
A20: 5 | C20: ="We estimate the population mean to be about "&D4&" with a margin of error of +/-"&ROUND(D12,2) -> We estimate the population mean to be about 6.34 with a margin of error of +/-0.61 | I20: Lower Limit | J20: =J5-J18 -> 5.725322265
A21: 8 | I21: Upper Limit | J21: =J5+J18 -> 6.954677735
A22: 4 | I22: ="We are "&MID(I18,SEARCH("(",I18)+1,5)&" sure the pop mean for "&A1&" lies between "&FIXED(J20,2)&" and "&FIXED(J21,2)&"." -> We are 95.0% sure the pop mean for Rating for Miami International Airport lies between 5.73 and 6.95.
A23: 3
A24: 8
A25: 5
A26: 5
A27: 4 | I27: ="We estimate the population mean to be about "&J5&" with a margin of error of +/-"&ROUND(J18,2) -> We estimate the population mean to be about 6.34 with a margin of error of +/-0.61
A28: 4
A29: 4
A30: 8
A31: 4
A32: 5
A33: 6
A34: 2
A35: 5
A36: 9
A37: 9
A38: 8
A39: 4
A40: 8
A41: 9
A42: 9
A43: 5
A44: 9
A45: 7
A46: 8
A47: 3
A48: 10
A49: 8
A50: 9
A51: 6

Sheet (18)
A1: Job Search Time (Weeks) | C1: Job Search Time (Weeks) | F1: Method 3:
A2: 21
A3: 14 | C3: Mean | D3: 22
A4: 51 | C4: Standard Error | D4: 1.879375237
A5: 16 | C5: Median | D5: 20
A6: 17 | C6: Mode | D6: 17
A7: 14 | C7: Standard Deviation | D7: 11.88621266
A8: 16 | C8: Sample Variance | D8: 141.2820513
A9: 12 | C9: Kurtosis | D9: 0.9029555815
A10: 48 | C10: Skewness | D10: 1.006197845
A11: 0 | C11: Range | D11: 52
A12: 27 | C12: Minimum | D12: 0
A13: 17 | C13: Maximum | D13: 52
A14: 32 | C14: Sum | D14: 880
A15: 24 | C15: Count | D15: 40
A16: 12 | C16: Confidence Level(95.0%) | D16: 3.801395228
A17: 10
A18: 52 | C18: a | D18: =C3 -> Mean | E18: =D3 -> 22
A19: 21 | C19: b | D19: Margin of Error | E19: =D16 -> 3.801395228
A20: 26 | D20: Lower Limit | E20: =E18-E19 -> 18.19860477
A21: 14 | D21: Upper Limit | E21: =E18+E19 -> 25.80139523
A22: 13 | C22: c | D22: ="We are 95% sure that the population mean job search time for workers 55 or older is between "&ROUND(E20,2)&" and "&ROUND(E21,2)&" weeks." -> We are 95% sure that the population mean job search time for workers 55 or older is between 18.2 and 25.8 weeks.
A23: 24
A24: 19 | C24: d | D24: The descriptive statistics output shows that the skewness is 1.0062. There is a moderate positive skewness in this data set. This can be expected to exist in a population such as this. While the above results are acceptable, considering a slightly larger sample next time would be a good strategy.
A25: 28
A26: 26
A27: 26
A28: 10
A29: 21
A30: 44
A31: 36
A32: 22
A33: 39
A34: 17
A35: 17
A36: 10
A37: 19
A38: 16
A39: 22
A40: 5
A41: 22

Sheet (20)
A1: Program Minutes | C1: Program Minutes
A2: 21.06
A3: 21.66 | C3: Mean | D3: 22
A4: 23.82 | C4: Standard Error | D4: 0.2502461946
A5: 21.52 | C5: Median | D5: 22.05
A6: 20.02 | C6: Mode | D6: 21.52
A7: 22.37 | C7: Standard Deviation | D7: 1.119135004
A8: 23.36 | C8: Sample Variance | D8: 1.252463158
A9: 22.24 | C9: Kurtosis | D9: -0.711705122
A10: 21.23 | C10: Skewness | D10: 0.09183871936
A11: 20.3 | C11: Range | D11: 3.84
A12: 21.91 | C12: Minimum | D12: 20.02
A13: 22.2 | C13: Maximum | D13: 23.86
A14: 22.19 | C14: Sum | D14: 440
A15: 23.44 | C15: Count | D15: 20
A16: 20.62 | C16: Confidence Level(95.0%) | D16: 0.5237713048
A17: 23.86
A18: 21.52 | C18: Lower Limit | D18: =D3-D16 -> 21.4762287
A19: 23.14 | C19: Upper Limit | D19: =D3+D16 -> 22.5237713
A20: 21.2 | C20: ="We are 95% sure that the population mean number of programming minutes in a 1/2 hour sitcom lies between "&ROUND(D18,2)&" and "&ROUND(D19,2)&" minutes." -> We are 95% sure that the population mean number of programming minutes in a 1/2 hour sitcom lies between 21.48 and 22.52 minutes.
A21: 22.34

Sheet (21)
A1: Annual Consumption (in liters) | C1: Annual Consumption (in liters)
A2: 266
A3: 170 | C3: Mean | D3: 130
A4: 164 | C4: Standard Error | D4: 14.62190138
A5: 93 | C5: Median | D5: 122.5
A6: 82 | C6: Mode | D6: 93
A7: 222 | C7: Standard Deviation | D7: 65.3911309
A8: 102 | C8: Sample Variance | D8: 4276
A9: 0 | C9: Kurtosis | D9: 0.5364152367
A10: 199 | C10: Skewness | D10: -0.1549123961
A11: 115 | C11: Range | D11: 266
A12: 113 | C12: Minimum | D12: 0
A13: 93 | C13: Maximum | D13: 266
A14: 174 | C14: Sum | D14: 2600
A15: 130 | C15: Count | D15: 20
A16: 171 | C16: Confidence Level(95.0%) | D16: 30.60399131
A17: 110
A18: 97 | C18: Lower Limit | D18: =D3-D16 -> 99.39600869
A19: 169 | C19: Upper Limit | D19: =D3+D16 -> 160.6039913
A20: 0 | C20: ="We are 95% sure that the population mean for annual consumption of alcoholic beverages by young women of drinking age in the UK lies between "&ROUND(D18,2)&" and "&ROUND(D19,2)&" liters." -> We are 95% sure that the population mean for annual consumption of alcoholic beverages by young women of drinking age in the UK lies between 99.4 and 160.6 liters.
A21: 130

Sheet (22)
A1: Ticket Sales ($) | C1: Ticket Sales ($)
A2: 20200
A3: 8350 | C3: Mean | D3: 10905
A4: 10750 | C4: Standard Error | D4: 792.4228669
A5: 13900 | C5: Median | D5: 10750
A6: =13650-465 -> 13185 | C6: Mode
A7: 10150 | C7: Standard Deviation | D7: 3962.114335
A8: 7300 | C8: Sample Variance | D8: 15698350
A9: 6240 | C9: Kurtosis | D9: 1.656706472
A10: 4200 | C10: Skewness | D10: 1.014727649
A11: 9200 | C11: Range | D11: 17200
A12: 13000 | C12: Minimum | D12: 4200
A13: 14000 | C13: Maximum | D13: 21400
A14: 12700 | C14: Sum | D14: 272625
A15: 6750 | C15: Count | D15: 25
A16: 21400 | C16: Confidence Level(95.0%) | D16: 1635.480415
A17: 11320
A18: 9940 | D18: Lower Limit | E18: =D3-D16 -> 9269.519585
A19: 7430 | D19: Upper Limit | E19: =D3+D16 -> 12540.48042
A20: 6700 | D20: ="We are 95% sure that the population mean three-day ticket sales revenue per theater is between "&DOLLAR(E18,2)&" and "&DOLLAR(E19,2)&"." -> We are 95% sure that the population mean three-day ticket sales revenue per theater is between $9,269.52 and $12,540.48.
A21: 11380
A22: 9700
A23: 11200 | C23: a
A24: 13500
A25: 9330 | D25: Ticket price = | E25: 7.16
A26: 10800 | C26: b | D26: Est. # customers per Theater | E26: =ROUND(D3/E25,0) -> 1523
D27: # theaters | E27: 3118
C28: c | D28: Est. # customersover weekend | E28: =E27*E26 -> 4748714
D29: Total Revenue | E29: =E28*E25 -> 34000792.24

Sheet (23)
A1: C L | B1: 0.95
A2: E | B2: 10
A3: Sigma | B3: 40
A4: Alpha | B4: =1-B1 -> 0.05
A5: Alpha/2 | B5: =B4/2 -> 0.025
A6: z | B6: =_xlfn.NORM.S.INV(1-B5) -> 1.959963985
A7: n | B7: =ROUNDUP((B6*B3/B2)^2,0) -> 62

Sheet (26)
A1: Xbar | B1: 2.41 | D1: Xbar | E1: 2.41 | G1: Xbar | H1: 2.41
A2: Sigma | B2: 0.15 | D2: Sigma | E2: 0.15 | G2: Sigma | H2: 0.15
A3: C L | B3: 0.95 | D3: C L | E3: 0.95 | G3: C L | H3: 0.95
A4: Alpha/2 | B4: =(1-B3)/2 -> 0.025 | D4: Alpha/2 | E4: =(1-E3)/2 -> 0.025 | G4: Alpha/2 | H4: =(1-H3)/2 -> 0.025
A5: E | B5: 0.07 | D5: E | E5: 0.05 | G5: E | H5: 0.03
A6: z | B6: =_xlfn.NORM.S.INV(1-B4) -> 1.959963985 | D6: z | E6: =_xlfn.NORM.S.INV(1-E4) -> 1.959963985 | G6: z | H6: =_xlfn.NORM.S.INV(1-H4) -> 1.959963985
A7: n | B7: =ROUNDUP((B6*B2/B5)^2,0) -> 18 | D7: n | E7: =ROUNDUP((E6*E2/E5)^2,0) -> 35 | G7: n | H7: =ROUNDUP((H6*H2/H5)^2,0) -> 97

Sheet (37)
A1: Binomial Tests
A2: Experiment consists of a sequence of n identical trials. Random Variable counts the number of successes in a Fixed number of trials, n. - Fixed # of Identical Trials = n | F2: Yes
A3: Only 2 outcomes are possible on each identical trial. Success or Failure. - Each trial only results in S or F | F3: Yes
A4: Probability of Success = p = (π "pi"). Probability of Failure = 1-p. Probability remains the same on each trial. - p remains the same for each trial | F4: Yes
A5: The trials are independent (one does not affect the next) - All events are independent | F5: Yes
A9: Response | C9: Sample Size = n | D9: =COUNTA(A10:A1109) -> 1100 | I9: =COUNTA(A10:A1109)
A10: Yes | C10: ="Count of "&E10 -> Count of Yes | D10: =COUNTIF($A$10:$A$1109,E10) -> 473 | E10: Yes | F10: Strongly dislike current working conditions | I10: =COUNTIF($A$10:$A$1109,F10)
A11: No | C11: ="Count of "&E11 -> Count of No | D11: =COUNTIF($A$10:$A$1109,E11) -> 627 | E11: No | I11: =COUNTIF($A$10:$A$1109,F11)
A12: Yes | C12: ="P("&E10&")" -> P(Yes) | D12: =D10/$D$9 -> 0.43 | E12: sample proportion = Point Estimate | F12: p | G12: Proportion of workers Strongly dislike current working conditions | I12: =D10/$D$9
A13: No | C13: ="P("&E11&")" -> P(No) | D13: =D11/$D$9 -> 0.57 | I13: =D11/$D$9
A14: Yes | C14: n*p>5 | D14: =D9*D12 -> 473 | E14: =IF(D14="","",D14>5) -> TRUE | F14: Can we use Normal Curve? | I14: =D9*D12
A15: Yes | C15: n*(1-p)>5 | D15: =D9*D13 -> 627 | E15: =IF(D15="","",D15>5) -> TRUE | I15: =D9*D13
A16: No | C16: Confidence Level | D16: 0.95 | I16: 0.95
A17: No | C17: Significance Level | D17: =1-D16 -> 0.05 | E17: alpha | I17: =1-D16
A18: Yes | C18: alpha/2 | D18: =D17/2 -> 0.025 | I18: =D17/2
A19: Yes | C19: z upper | D19: =_xlfn.NORM.S.INV(1-D18) -> 1.959963985 | I19: =NORM.S.INV(1-D18)
A20: Yes | C20: Standard Error | D20: =SQRT(D12*D13/D9) -> 0.01492709556 | E20: SQRT(p*(1-p)/n) | I20: =SQRT(D12*D13/D9)
A21: Yes | C21: Margin of error | D21: =D20*D19 -> 0.02925656969 | I21: =D20*D19
A22: No | C22: Lower Limit | D22: =$D$12-$D$21 -> 0.4007434303 | I22: =$D$12-$D$21
A23: No | C23: Upper Limit | D23: =$D$12+$D$21 -> 0.4592565697 | I23: =$D$12+$D$21
A24: No | C24: Conclusion:
A25: No | C25: =IF(D23="","","The "&TEXT(D16,"0.00%")&" confidence interval for the "&LOWER(G12)&" is "&TEXT(D22,"0.0000")&" to "&TEXT(D23,"0.0000")&".") -> The 95.00% confidence interval for the proportion of workers strongly dislike current working conditions is 0.4007 to 0.4593.
A26: Yes | C26: So, since this company hires people on the spot if they know their field and they know Excel, be sure to study both in school!
A27: No
A28: No
A29: No
A30: No
A31: No
A32: Yes
A33: No
A34: No
A35: Yes
A36: No
A37: No
A38: No
A39: Yes
A40: No
A41: No
A42: No
A43: No
A44: Yes
A45: No
A46: No
A47: No
A48: No
A49: Yes
A50: No
A51: No
A52: No
A53: Yes
A54: No
A55: No
A56: Yes
A57: Yes
A58: Yes
A59: No
A60: No
A61: Yes
A62: Yes
A63: No
A64: Yes
A65: Yes
A66: No
A67: No
A68: No
A69: No
A70: No
A71: Yes
A72: Yes
A73: No
A74: Yes
A75: Yes
A76: No
A77: Yes
A78: No
A79: Yes
A80: Yes
A81: No
A82: No
A83: No
A84: Yes
A85: No
A86: Yes
A87: No
A88: Yes
A89: No
A90: No
A91: No
A92: No
A93: No
A94: Yes
A95: No
A96: Yes
A97: No
A98: Yes
A99: Yes
A100: Yes
A101: Yes
A102: No
A103: No
A104: No
A105: Yes
A106: Yes
A107: Yes
A108: Yes
A109: No
A110: Yes
A111: Yes
A112: No
A113: No
A114: No
A115: No
A116: Yes
A117: No
A118: No
A119: No
A120: Yes
A121: Yes
A122: No
A123: No
A124: No
A125: No
A126: No
A127: Yes
A128: No
A129: Yes
A130: No
A131: No
A132: No
A133: No
A134: No
A135: Yes
A136: No
A137: No
A138: No
A139: No
A140: No
A141: Yes
A142: Yes
A143: No
A144: Yes
A145: No
A146: No
A147: No
A148: Yes
A149: No
A150: No
A151: Yes
A152: Yes
A153: No
A154: No
A155: No
A156: Yes
A157: Yes
A158: Yes
A159: Yes
A160: No
A161: Yes
A162: Yes
A163: Yes
A164: Yes
A165: Yes
A166: Yes
A167: No
A168: Yes
A169: No
A170: No
A171: Yes
A172: Yes
A173: Yes
A174: No
A175: No
A176: No
A177: No
A178: No
A179: No
A180: No
A181: No
A182: No
A183: No
A184: Yes
A185: No
A186: Yes
A187: Yes
A188: Yes
A189: Yes
A190: No
A191: No
A192: Yes
A193: No
A194: No
A195: No
A196: No
A197: No
A198: Yes
A199: Yes
A200: No
A201: No
A202: No
A203: Yes
... 906 more rows

Sheet (38)
B1: Beat Estimate | C1: 104
B2: Matched Estimate | C2: 29
B3: Fell short | C3: 29
B4: ="P("&B1&")" -> P(Beat Estimate) | C4: =C1/SUM($C$1:$C$3) -> 0.6419753086
B5: ="P("&B2&")" -> P(Matched Estimate) | C5: =C2/SUM($C$1:$C$3) -> 0.1790123457
A6: a | B6: ="P("&B3&")" -> P(Fell short) | C6: =C3/SUM($C$1:$C$3) -> 0.1790123457
B7: C L | C7: 0.95
B8: z | C8: =_xlfn.NORM.S.INV(1-(1-C7)/2) -> 1.959963985 | D8: <<== not rounded, like book
B9: Standard Error | C9: =SQRT(C4*(1-C4)/SUM(C1:C3)) -> 0.03766674957 | D9: SQRT(p*(1-p)/n)
A10: b | B10: Margin of Error | C10: =C8*C9 -> 0.07382547257
B11: Lower Limit | C11: =$C$4-$C$10 -> 0.5681498361
B12: Upper Limit | C12: =$C$4+$C$10 -> 0.7158007812 | D12: ="We are 95% sure that the proportion of companies that beat the estimate is between "&ROUND(C11,4)&" and "&ROUND(C12,4) -> We are 95% sure that the proportion of companies that beat the estimate is between 0.5681 and 0.7158
B15: E | C15: 0.05
A16: c | B16: n | C16: =ROUNDUP(C4*(1-C4)*(C8/C15)^2,0) -> 354

Sheet (55)
A1: n | B1: 1677 | C1: US Internet users
A2: pbar | B2: 0.74 | C2: ave age 22 said hard to give up computer
B3: 0.48 | C3: ave age 22 said hard to give up TV
A5: a | B5: C L | C5: 0.95
B6: z | C6: =_xlfn.NORM.S.INV(1-(1-C5)/2) -> 1.959963985
B7: Standard Error | C7: =SQRT(B2*(1-B2)/B1) -> 0.01071114757 | D7: SQRT(p*(1-p)/n)
B8: Margin of Error | C8: =C7*C6 -> 0.02099346346
B9: Lower Limit | C9: =$B$2-$C$8 -> 0.7190065365
B10: Upper Limit | C10: =$B$2+$C$8 -> 0.7609934635
B11: ="We are "&TEXT(C5,"0%")&" sure that the pop proportion lies between "&ROUND(C9,3)&" and "&ROUND(C10,3) -> We are 95% sure that the pop proportion lies between 0.719 and 0.761
A13: a | B13: C L | C13: 0.99
B14: z | C14: =_xlfn.NORM.S.INV(1-(1-C13)/2) -> 2.575829304
B15: Standard Error | C15: =SQRT(B3*(1-B3)/B1) -> 0.01219988563 | D15: SQRT(p*(1-p)/n)
B16: Margin of Error | C16: =C15*C14 -> 0.0314248229
B17: Lower Limit | C17: =$B$3-$C$16 -> 0.4485751771
B18: Upper Limit | C18: =$B$3+$C$16 -> 0.5114248229
B19: ="We are "&TEXT(C13,"0%")&" sure that the pop proportion lies between "&ROUND(C17,3)&" and "&ROUND(C18,3) -> We are 99% sure that the pop proportion lies between 0.449 and 0.511

Sheet Sheet1

Sheet Sheet2

Sheet Sheet3
